bitfinex-derivatives/quotes_ETHF0:USTF0_20251211
["timestamp","ask_amount","ask_price","bid_price","bid_amount"]
[1765437517369,9.228,3202.0,3201.9,6.22498437]
[1765437517669,11.828,3202.0,3201.9,6.22498437]
[1765437518769,9.228,3202.0,3201.9,6.22498437]
[1765437519375,11.828,3202.0,3201.9,6.22498437]
[1765437520266,11.828,3202.0,3201.9,0.15880405]
[1765437520870,11.828,3202.0,3201.9,2.56480405]
[1765437521067,11.828,3202.0,3201.9,0.15880405]
[1765437522071,11.828,3202.0,3201.9,2.56480405]
[1765437522769,5.3434,3202.0,3201.9,6.22498437]
[1765437522973,5.3434,3202.0,3201.9,9.50631606]
[1765437523770,4.69479489,3202.0,3201.9,9.50631606]
[1765437524472,4.32889489,3202.0,3201.9,10.62169638]
[1765437524673,3.93542489,3202.0,3201.9,9.50631606]
[1765437525773,3.57706489,3202.0,3201.9,10.62169638]
[1765437525975,1.3302,3202.5,3202.4,5.10692]
[1765437526274,0.00468618,3202.6,3202.5,5.10691]
[1765437526865,7.15238618,3202.6,3202.5,5.10691]
[1765437536081,7.15238618,3202.6,3202.5,8.31471]
[1765437537379,9.70678618,3202.6,3202.5,8.31471]
[1765437537877,12.30678618,3202.6,3202.5,8.31471]
[1765437540081,9.70678618,3202.6,3202.5,8.31471]
[1765437540382,9.60738618,3202.6,3202.5,8.31471]
[1765437540584,7.15238618,3202.6,3202.5,8.31471]
[1765437540783,9.60738618,3202.6,3202.5,8.31471]
[1765437541984,12.05278618,3202.6,3202.5,8.31471]
[1765437542185,9.60738618,3202.6,3202.5,8.31471]
[1765437542478,12.05278618,3202.6,3202.5,8.31471]
[1765437542683,12.05278618,3202.6,3202.5,5.10691]
[1765437542887,12.05278618,3202.6,3202.5,8.31471]
[1765437544986,9.60738618,3202.6,3202.5,8.31471]
[1765437545185,12.05278618,3202.6,3202.5,8.31471]
[1765437545989,12.05278618,3202.6,3202.5,5.10691]
[1765437546387,12.05278618,3202.6,3202.5,8.31471]
[1765437546790,9.60738618,3202.6,3202.5,8.31471]
[1765437547090,7.15238618,3202.6,3202.5,8.31471]
[1765437547290,7.15238618,3202.6,3202.5,11.64636869]
[1765437549189,7.15238618,3202.6,3202.5,12.64556869]
[1765437549390,0.09822143,3202.6,3202.5,11.64636869]
[1765437549592,1.43e-06,3202.6,3202.5,11.64636869]
[1765437549785,2.45799467,3202.8,3202.7,5.1578]
[1765437549989,2.45799467,3202.8,3202.7,6.27318032]
[1765437550190,0.00299467,3202.8,3202.7,6.27318032]
[1765437550392,4.00609467,3202.8,3202.7,6.27318032]
[1765437550788,6.46109467,3202.8,3202.7,6.27318032]
[1765437550988,4.00609467,3202.8,3202.7,6.27318032]
[1765437551699,6.46109467,3202.8,3202.7,6.27318032]
[1765437552407,4.00609467,3202.8,3202.7,6.27318032]
[1765437552896,4.00609467,3202.8,3202.7,9.72887976]
[1765437553505,9.57479467,3202.8,3202.7,9.72887976]
[1765437553699,9.57479467,3202.8,3202.7,0.1561]
[1765437558102,5.5687,3202.3,3202.2,3.2078]
[1765437559508,5.5687,3202.3,3202.2,3.36393]
[1765437569914,5.5687,3202.3,3202.2,8.63573]
[1765437570218,5.3228,3202.3,3202.2,3.36393]
[1765437570412,5.3228,3202.3,3202.2,4.5076217]
[1765437575719,5.3228,3202.3,3202.2,7.1902217]
[1765437576422,5.3228,3202.3,3202.2,4.5076217]
[1765437579028,5.3228,3202.3,3202.2,7.1902217]
[1765437583925,4.00609467,3202.8,3202.7,0.1561]
[1765437584121,6.56609467,3202.8,3202.7,6.4658917]
[1765437584325,9.07849467,3202.8,3202.7,3.9823917]
[1765437584527,9.07849467,3202.8,3202.7,1.2997917]
[1765437584931,9.07849467,3202.8,3202.7,0.1561]
[1765437589024,12.28629467,3202.8,3202.7,0.1561]
[1765437591838,12.28629467,3202.8,3202.7,2.8387]
[1765437592339,12.28629467,3202.8,3202.7,0.1561]
[1765437596037,12.28629467,3202.8,3202.7,0.1561]
[1765437599049,12.28629467,3202.8,3202.7,2.8387]
[1765437599746,9.07849467,3202.8,3202.7,3.5581917]
[1765437600049,4.00609467,3202.8,3202.7,5.9103917]
[1765437600656,8.87029467,3202.8,3202.7,5.9103917]
[1765437600859,8.87029467,3202.8,3202.7,0.1561]
[1765437601152,8.87029467,3202.8,3202.1,9.03068559]
[1765437601153,4.8642,3202.2,3202.1,9.03068559]
[1765437601745,4.8642,3202.2,3202.1,8.55700721]
[1765437601947,4.8642,3202.2,3202.1,3.2265]
[1765437602257,12.0542,3202.2,3202.1,0.15613]
[1765437602451,18.0542,3202.2,3202.1,0.15613]
[1765437604255,12.0542,3202.2,3202.1,0.15613]
[1765437604758,12.0542,3202.2,3202.1,2.41453]
[1765437605059,12.0542,3202.2,3202.1,0.15613]
[1765437606357,12.0542,3202.2,3202.1,2.41453]
[1765437606561,12.0542,3202.2,3202.1,0.15613]
[1765437610060,13.1978917,3202.2,3202.1,0.15613]
[1765437610666,12.0542,3202.2,3202.1,2.41453]
[1765437611060,12.0542,3202.2,3202.1,0.15613]
[1765437611559,13.1978917,3202.2,3202.1,0.15613]
[1765437613065,12.0542,3202.2,3202.1,0.15613]
[1765437618570,12.0542,3202.2,3202.1,2.70013]
[1765437618773,7.19,3202.2,3202.1,6.4616217]
[1765437619166,12.1166,3202.2,3202.1,6.4616217]
[1765437620770,12.1166,3202.2,3202.1,1.2998217]
[1765437621170,12.1166,3202.2,3202.1,0.15613]
[1765437630382,13.23181347,3202.2,3202.1,0.15613]
[1765437631179,4.8442,3200.7,3200.6,8.2298]
[1765437631379,2.3739,3200.7,3200.6,8.2298]
[1765437632083,6.7846,3200.7,3200.6,8.48389602]
[1765437632278,4.4107,3200.7,3200.6,8.48389602]
[1765437632581,4.4107,3200.7,3200.6,8.64009602]
[1765437634977,6.7846,3200.7,3200.6,14.64009602]
[1765437637287,4.4107,3200.7,3200.6,14.64009602]
[1765437638390,9.2549,3200.7,3200.6,8.64009602]
[1765437638786,9.2549,3200.7,3200.6,2.91349602]
[1765437639089,9.2549,3200.7,3200.6,0.15914817]
[1765437639487,9.2549,3200.7,3200.6,2.66234817]
[1765437639783,4.4107,3200.7,3200.6,6.29636164]
[1765437640390,4.4107,3200.7,3200.6,9.72698313]
[1765437641295,4.4107,3200.7,3200.6,9.97422702]
[1765437641790,4.4107,3200.7,3200.6,13.18202702]
[1765437642993,4.4107,3200.7,3200.6,9.97422702]
[1765437645992,6.7846,3200.7,3200.6,9.97422702]
[1765437646495,4.4107,3200.7,3200.6,9.97422702]
[1765437652397,17.78192694,3200.7,3199.2,11.16794186]
[1765437652695,5.59449694,3199.3,3198.5,1.5109]
[1765437652995,1.11521347,3198.6,3197.7,0.15634]
[1765437653202,3.2078,3197.8,3196.8,0.15639]
[1765437653394,3.2078,3197.2,3197.1,0.00468618]
[1765437654190,3.2078,3197.2,3197.1,5.18305618]
[1765437654598,13.3201,3197.2,3197.1,2.66425618]
[1765437655099,13.3201,3197.2,3197.1,5.18305618]
[1765437659108,13.3201,3197.2,3197.1,0.00468618]
[1765437659303,19.3201,3197.2,3197.0,0.00272214]
[1765437659509,13.3201,3197.2,3197.0,0.00272214]
[1765437660314,13.3201,3197.2,3197.0,2.11962214]
[1765437660511,13.3201,3197.2,3197.1,0.15637]
[1765437660707,13.3201,3197.2,3197.1,7.01737]
[1765437661411,13.3201,3197.2,3197.1,3.65957]
[1765437661713,13.3201,3197.2,3197.1,0.15637]
[1765437661913,13.3201,3197.2,3197.1,3.65957]
[1765437662114,13.3201,3197.2,3197.1,0.15637]
[1765437663512,13.3201,3197.2,3197.1,7.01737]
[1765437664122,13.3201,3197.2,3197.0,2.11962214]
[1765437664705,13.3201,3197.2,3197.0,0.00272214]
[1765437665214,9.7937,3197.1,3197.0,0.00272214]
[1765437665614,9.7937,3197.1,3197.0,2.11962214]
[1765437666205,9.7937,3197.1,3197.0,0.00272214]
[1765437666412,9.7937,3197.1,3197.0,2.11962214]
[1765437669117,18.8834,3197.1,3197.0,2.11962214]
[1765437669922,18.8834,3197.1,3197.0,9.13700214]
[1765437670115,18.8834,3197.1,3197.0,5.77920214]
[1765437670420,18.8834,3197.1,3197.0,2.27600214]
[1765437671220,18.8834,3197.1,3197.0,9.13700214]
[1765437671412,18.8834,3197.1,3197.0,5.77920214]
[1765437671712,18.8834,3197.1,3197.0,2.27600214]
[1765437672715,18.8834,3197.1,3197.0,5.59040214]
[1765437672915,18.8834,3197.1,3197.0,2.27600214]
[1765437673215,24.8834,3197.1,3196.8,0.00468618]
[1765437673420,18.8834,3197.1,3196.6,0.1564]
[1765437673621,3.2078,3196.7,3196.6,0.1564]
[1765437674115,27.6634,3196.7,3196.6,0.1564]
[1765437674420,27.6634,3196.7,3196.6,0.1599277]
[1765437676020,27.6634,3196.7,3196.3,0.00468618]
[1765437676318,48.3592,3196.5,3196.3,0.00468618]
[1765437676916,29.4584,3196.4,3196.3,0.00468618]
[1765437677620,29.4584,3196.4,3196.3,3.47549618]
[1765437677821,29.4584,3196.4,3196.3,0.16109618]
[1765437683117,29.4584,3196.4,3196.3,6.80079618]
[1765437683624,29.4584,3196.4,3196.3,3.47549618]
[1765437684424,52.081,3196.4,3196.3,0.16109618]
[1765437685224,52.081,3196.4,3196.0,1.5109]
[1765437685519,3.2078,3196.1,3196.0,1.66733]
[1765437685721,3.2078,3196.1,3196.0,8.30703]
[1765437685918,33.2162,3196.1,3196.0,8.30703]
[1765437686116,33.2162,3196.1,3196.0,1.66733]
[1765437686523,33.2162,3196.1,3196.0,4.98173]
[1765437686718,33.2162,3196.1,3196.0,8.30703]
[1765437687123,124.517,3196.1,3196.0,8.30703]
[1765437688724,124.517,3196.1,3196.0,17.58028671]
[1765437689227,124.00886087,3196.1,3196.0,17.58028671]
[1765437689421,113.72106087,3196.1,3196.0,17.58028671]
[1765437689628,103.51716087,3196.1,3196.0,17.58028671]
[1765437691022,92.76262705,3196.1,3196.0,19.23320098]
[1765437691231,92.39860705,3196.1,3196.0,19.23320098]
[1765437691527,91.64410705,3196.1,3196.0,19.23320098]
[1765437692617,91.64410705,3196.1,3196.0,10.06938671]
[1765437692825,91.64410705,3196.1,3196.0,0.15643]
[1765437693025,91.64410705,3196.1,3196.0,6.52913]
[1765437695627,91.64410705,3196.1,3196.0,10.03470605]
[1765437697029,91.64410705,3196.1,3196.0,7.16029637]
[1765437697432,91.64410705,3196.1,3196.0,0.15643]
[1765437701234,146.95790705,3196.1,3196.0,0.15643]
[1765437702346,6.5803,3195.9,3195.8,0.15644]
[1765437702646,9.7881,3195.9,3195.8,0.15890833]
[1765437703039,156.0933,3195.9,3195.8,0.15890833]
[1765437706248,156.0933,3195.9,3195.8,5.68238793]
[1765437707845,156.0933,3195.9,3195.8,0.15890833]
[1765437708041,156.0933,3195.9,3195.8,3.23450833]
[1765437708849,156.0933,3195.9,3195.8,0.15890833]
[1765437709349,156.0933,3195.9,3195.8,3.23450833]
[1765437709550,156.0933,3195.9,3195.8,6.53160833]
[1765437709945,156.0933,3195.9,3195.8,3.23450833]
[1765437710149,149.513,3195.9,3195.8,3.43265442]
[1765437710357,141.06864033,3195.9,3195.8,0.15890833]
[1765437710653,141.06864033,3195.9,3195.8,7.36077832]
[1765437710844,141.06864033,3195.9,3195.8,10.43637832]
[1765437711250,141.06864033,3195.9,3195.8,7.36077832]
[1765437711548,141.06864033,3195.9,3195.8,13.73347832]
[1765437711746,141.06864033,3195.9,3195.8,10.43637832]
[1765437712647,141.06864033,3195.9,3195.8,7.36077832]
[1765437713743,141.06864033,3195.9,3195.8,13.73347832]
[1765437713948,141.06864033,3195.9,3195.8,10.43637832]
[1765437714144,141.06864033,3195.9,3195.8,3.23450833]
[1765437714344,141.06864033,3195.9,3195.8,0.15890833]
[1765437714950,141.06864033,3195.9,3195.8,3.23450833]
[1765437715341,141.06864033,3195.9,3195.8,13.82822846]
[1765437716050,141.06864033,3195.9,3195.8,7.45552846]
[1765437716551,141.06864033,3195.9,3195.8,0.15890833]
[1765437717348,141.06864033,3195.9,3195.8,3.23450833]
[1765437717742,141.06864033,3195.9,3195.8,6.53160833]
[1765437718348,140.56043726,3195.9,3195.8,6.53160833]
[1765437719454,140.56043726,3195.9,3195.8,3.23450833]
[1765437720555,140.56043726,3195.9,3195.8,8.00440833]
[1765437720855,140.56043726,3195.9,3195.8,9.15238621]
[1765437722055,140.56043726,3195.9,3195.8,12.41842632]
[1765437722348,135.12243726,3195.9,3195.8,12.41842632]
[1765437722953,135.12243726,3195.9,3195.8,3.42494844]
[1765437723157,136.27041514,3195.9,3195.8,0.15890833]
[1765437723557,136.27041514,3195.9,3195.8,8.33e-06]
[1765437724056,135.12243726,3195.9,3195.8,8.33e-06]
[1765437724653,135.12243726,3195.9,3195.8,0.15644833]
[1765437727760,135.12243726,3195.9,3195.8,9.66894833]
[1765437727953,135.12243726,3195.9,3195.8,7.45824262]
[1765437728150,135.12243726,3195.9,3195.8,12.20084262]
[1765437728962,135.12243726,3195.9,3195.2,8.87420582]
[1765437728963,9.8271,3195.3,3195.2,8.87420582]
[1765437729162,13.0349,3195.3,3195.2,8.87420582]
[1765437729361,13.0349,3195.3,3195.2,14.49394158]
[1765437729661,220.8432,3195.3,3195.2,14.49394158]
[1765437729962,287.85524432,3195.3,3195.2,14.49394158]
[1765437730359,287.85524432,3195.3,3195.2,5.77620576]
[1765437730557,287.85524432,3195.3,3195.2,10.51880576]
[1765437730752,287.85524432,3195.3,3195.2,5.77620576]
[1765437730959,287.85524432,3195.3,3195.2,0.15647]
[1765437732858,287.85524432,3195.3,3195.2,9.97537]
[1765437733565,277.68829432,3195.3,3195.2,20.98090754]
[1765437733760,277.68829432,3195.3,3195.2,19.32717438]
[1765437734465,274.82034432,3195.3,3195.2,28.2013802]
[1765437736561,274.43353432,3195.3,3195.2,28.2013802]
[1765437736766,274.05846432,3195.3,3195.2,28.2013802]
[1765437737668,273.72687432,3195.3,3195.2,28.2013802]
[1765437738367,273.72687432,3195.3,3195.2,19.32717438]
[1765437738869,273.72687432,3195.3,3195.2,13.32717438]
[1765437740466,273.72687432,3195.3,3195.2,19.32717438]
[1765437740665,273.37314432,3195.3,3195.2,13.32717438]
[1765437740869,273.04233432,3195.3,3195.2,13.32717438]
[1765437742269,272.72158432,3195.3,3195.2,13.32717438]
[1765437742465,266.64038509,3195.3,3195.2,20.98090754]
[1765437742669,253.57706854,3195.3,3195.2,21.03535864]
[1765437743069,236.42147854,3195.3,3195.2,21.03535864]
[1765437743372,235.91176854,3195.3,3195.2,21.03535864]
[1765437743564,235.44210854,3195.3,3195.2,21.03535864]
[1765437743761,229.13970568,3195.3,3195.2,21.03535864]
[1765437743971,222.82210568,3195.3,3195.2,21.03535864]
[1765437744171,221.40986568,3195.3,3195.2,21.03535864]
[1765437744766,215.52193282,3195.3,3195.2,21.03535864]
[1765437744972,214.82577282,3195.3,3195.2,21.03535864]
[1765437745571,214.13838282,3195.3,3195.2,21.03535864]
[1765437745871,208.23613996,3195.3,3195.2,21.03535864]
[1765437746066,206.80614996,3195.3,3195.2,21.03535864]
[1765437746469,205.41673996,3195.3,3195.2,21.03535864]
[1765437746872,198.9042071,3195.3,3195.2,21.03535864]
[1765437747270,198.0609571,3195.3,3195.2,21.03535864]
[1765437747470,196.5985271,3195.3,3195.2,21.03535864]
[1765437747777,190.64233424,3195.3,3195.2,21.03535864]
[1765437748579,188.97048424,3195.3,3195.2,21.03535864]
[1765437748781,183.46661705,3195.3,3195.2,20.52935779]
[1765437749178,182.61779705,3195.3,3195.2,20.52935779]
[1765437749376,181.82506705,3195.3,3195.2,20.52935779]
[1765437749577,180.42671705,3195.3,3195.2,32.93035779]
[1765437749775,179.02000705,3195.3,3195.2,32.93035779]
[1765437750079,177.50722705,3195.3,3195.2,32.93035779]
[1765437750477,175.97394705,3195.3,3195.2,32.93035779]
[1765437750679,174.49107035,3195.3,3195.2,20.50079057]
[1765437750980,173.06684035,3195.3,3195.2,32.89979057]
[1765437751473,172.34258035,3195.3,3195.2,20.50079057]
[1765437751681,170.85468035,3195.3,3195.2,32.89979057]
[1765437752577,169.49800035,3195.3,3195.2,32.89979057]
[1765437755776,168.79692035,3195.3,3195.2,32.89979057]
[1765437755972,168.09753035,3195.3,3195.2,32.89979057]
[1765437756483,167.43365035,3195.3,3195.2,32.89979057]
[1765437756683,166.77159035,3195.3,3195.2,32.89979057]
[1765437756883,166.11047035,3195.3,3195.2,20.50079057]
[1765437757095,164.93488035,3195.3,3195.2,32.89479057]
[1765437757286,164.36468035,3195.3,3195.2,26.89479057]
[1765437757583,163.78513035,3195.3,3195.2,26.89479057]
[1765437757775,163.20817035,3195.3,3195.2,26.89479057]
[1765437757978,162.03895035,3195.3,3195.2,26.89479057]
[1765437758479,160.44450035,3195.3,3195.2,17.07389057]
[1765437758678,159.19630096,3195.3,3195.2,17.07389057]
[1765437758978,158.32836096,3195.3,3195.2,15.95372548]
[1765437759180,157.96107096,3195.3,3195.2,15.95372548]
[1765437759377,157.58543096,3195.3,3195.2,15.95372548]
[1765437759578,157.20939096,3195.3,3195.2,15.95372548]
[1765437759779,156.46312096,3195.3,3195.2,15.95372548]
[1765437759984,155.95716096,3195.3,3195.2,15.95372548]
[1765437760284,155.32259096,3195.3,3195.2,15.95372548]
[1765437760479,154.35203096,3195.3,3195.2,15.95372548]
[1765437760874,153.91309096,3195.3,3195.2,15.95372548]
[1765437761080,153.46969096,3195.3,3195.2,15.95372548]
[1765437761280,153.03063096,3195.3,3195.2,3.56272548]
[1765437761481,152.20021096,3195.3,3195.2,15.95372548]
[1765437761781,151.73454096,3195.3,3195.2,15.95372548]
[1765437761980,151.26229096,3195.3,3195.2,15.95372548]
[1765437762180,150.31779096,3195.3,3195.2,15.95372548]
[1765437762383,149.82765096,3195.3,3195.2,15.95372548]
[1765437762583,149.34697096,3195.3,3195.2,15.95372548]
[1765437763380,149.34697096,3195.3,3195.2,3.56272548]
[1765437763381,148.91830096,3195.3,3195.2,3.56272548]
[1765437763580,148.11785096,3195.3,3195.2,15.95272548]
[1765437763779,147.68877096,3195.3,3195.2,15.95272548]
[1765437763980,147.25198096,3195.3,3195.2,15.95272548]
[1765437764689,146.82371096,3195.3,3195.2,15.95272548]
[1765437764883,146.41427096,3195.3,3195.2,15.95272548]
[1765437767795,146.02234096,3195.3,3195.2,15.95272548]
[1765437768090,145.24660096,3195.3,3195.2,15.95272548]
[1765437768692,144.47435096,3195.3,3195.2,19.16052548]
[1765437769392,143.59035096,3195.3,3195.2,19.16052548]
[1765437770289,143.59035096,3195.3,3195.2,6.77052548]
[1765437770591,142.24685096,3195.3,3195.2,19.15452548]
[1765437770787,141.67742096,3195.3,3195.2,19.15452548]
[1765437770984,141.01925096,3195.3,3195.2,19.15452548]
[1765437771189,140.36086096,3195.3,3195.2,19.15452548]
[1765437771389,139.77369096,3195.3,3195.2,19.15452548]
[1765437771792,139.13472096,3195.3,3195.2,30.25774211]
[1765437772092,137.88087096,3195.3,3195.2,30.25774211]
[1765437772296,137.21109096,3195.3,3195.2,30.25774211]
[1765437772493,136.53988096,3195.3,3195.2,30.25774211]
[1765437772688,135.84115096,3195.3,3195.2,30.25774211]
[1765437772897,134.47526096,3195.3,3195.2,30.25774211]
[1765437773090,133.80667096,3195.3,3195.2,30.25774211]
[1765437773290,132.59908096,3195.3,3195.2,30.25774211]
[1765437773997,131.36309096,3195.3,3195.2,19.15452548]
[1765437775500,130.05971096,3195.3,3195.2,19.15452548]
[1765437776200,129.42534096,3195.3,3195.2,19.15452548]
[1765437776395,128.80106096,3195.3,3195.2,19.15452548]
[1765437777498,128.28029096,3195.3,3195.2,19.15452548]
[1765437777697,127.73438096,3195.3,3195.2,19.15452548]
[1765437777898,127.22109096,3195.3,3195.2,19.15452548]
[1765437778098,126.70455096,3195.3,3195.2,19.15452548]
[1765437778591,126.20272096,3195.3,3195.2,19.15452548]
[1765437778796,125.66670096,3195.3,3195.2,19.15452548]
[1765437779298,125.11227096,3195.3,3195.2,19.15452548]
[1765437779596,124.56477096,3195.3,3195.2,19.15452548]
[1765437781295,123.88500096,3195.3,3195.2,19.15452548]
[1765437781594,116.16212898,3195.3,3195.2,20.27369057]
[1765437781799,116.16212898,3195.3,3195.2,25.45529057]
[1765437781800,114.50750898,3195.3,3195.2,25.45529057]
[1765437782111,113.01902898,3195.3,3195.2,25.45529057]
[1765437782294,112.37262898,3195.3,3195.2,25.45529057]
[1765437782497,104.665407,3195.3,3195.2,25.45529057]
[1765437783500,96.91790502,3195.3,3195.2,25.45529057]
[1765437784102,95.55990502,3195.3,3195.2,25.45529057]
[1765437784404,88.51046304,3195.3,3195.2,25.45529057]
[1765437784702,88.51046304,3195.3,3195.2,24.33612548]
[1765437784703,87.14700304,3195.3,3195.2,24.33612548]
[1765437785397,79.26712106,3195.3,3195.2,24.33612548]
[1765437785802,76.55643125,3195.3,3195.2,24.33612548]
[1765437786000,74.89858125,3195.3,3195.2,30.33612548]
[1765437786202,73.27658125,3195.3,3195.2,30.33612548]
[1765437786402,66.90511927,3195.3,3195.2,30.33612548]
[1765437786702,93.01751927,3195.3,3195.2,30.33612548]
[1765437786903,92.21066927,3195.3,3195.2,30.33612548]
[1765437787098,91.40563927,3195.3,3195.2,30.33612548]
[1765437787407,83.42757729,3195.3,3195.2,31.45529057]
[1765437787599,82.63086729,3195.3,3195.2,30.33612548]
[1765437787804,81.83415729,3195.3,3195.2,30.33612548]
[1765437788303,80.23047729,3195.3,3195.2,30.33612548]
[1765437788812,13.57828838,3195.3,3195.2,31.45529057]
[1765437788997,11.25463665,3195.3,3195.2,31.45529057]
[1765437789202,0.00469359,3195.6,3195.5,0.15645]
[1765437789501,1.37492359,3196.0,3195.9,2.44019509]
[1765437789696,0.46511977,3196.0,3195.9,18.02099509]
[1765437789900,0.00230405,3196.0,3195.9,18.02330236]
[1765437790107,14.15320405,3196.1,3196.0,6.46083]
[1765437790296,6.86929,3196.1,3196.0,6.46083]
[1765437790500,14.12865,3196.1,3196.0,6.46083]
[1765437790701,13.59503,3196.1,3196.0,6.46083]
[1765437791102,12.54478767,3196.1,3196.0,6.46083]
[1765437791503,18.62673767,3196.1,3196.0,6.46083]
[1765437791699,11.05125767,3196.1,3196.0,6.46083]
[1765437791903,19.13152767,3196.1,3196.0,6.46083]
[1765437792308,18.09598594,3196.1,3196.0,6.46083]
[1765437793212,23.18971767,3196.1,3196.0,6.46083]
[1765437793405,22.66076767,3196.1,3196.0,6.46083]
[1765437793601,22.14480767,3196.1,3196.0,9.7182934]
[1765437793806,21.61250767,3196.1,3196.0,9.7182934]
[1765437794006,13.57260767,3196.1,3196.0,9.7182934]
[1765437794208,19.91544767,3196.1,3196.0,9.7182934]
[1765437794413,19.32895767,3196.1,3196.0,9.7182934]
[1765437794613,11.30655767,3196.1,3196.0,9.7182934]
[1765437794813,10.59993767,3196.1,3196.0,9.7182934]
[1765437795010,9.89613767,3196.1,3196.0,14.8972934]
[1765437795209,9.24546767,3196.1,3196.0,14.8972934]
[1765437796316,22.33671767,3196.1,3196.0,20.9618934]
[1765437796518,21.5089994,3196.1,3196.0,20.9618934]
[1765437796713,29.6140894,3196.1,3196.0,20.9618934]
[1765437797215,28.12407275,3196.1,3196.0,27.8326934]
[1765437797416,27.64337275,3196.1,3196.0,20.9618934]
[1765437797614,27.09777275,3196.1,3196.0,20.9618934]
[1765437797815,26.56806275,3196.1,3196.0,27.8326934]
[1765437798418,25.51420275,3196.1,3196.0,27.8326934]
[1765437798617,24.46255275,3196.1,3196.0,27.8316934]
[1765437798814,23.94397275,3196.1,3196.0,27.8316934]
[1765437799013,23.39920275,3196.1,3196.0,35.3422934]
[1765437799312,22.86648275,3196.1,3196.0,35.3422934]
[1765437800417,21.72819275,3196.1,3196.0,35.3422934]
[1765437800919,13.80639275,3196.1,3196.0,35.3422934]
[1765437801115,8.20513335,3196.1,3196.0,35.3422934]
[1765437801315,6.98509335,3196.1,3196.0,35.3422934]
[1765437801516,23.3497,3196.3,3196.2,7.5106]
[1765437801716,13.68903,3196.1,3196.0,28.4714934]
[1765437802018,12.60587,3196.1,3196.0,36.55063086]
[1765437802425,11.49128,3196.1,3196.0,36.55063086]
[1765437802614,3.05120318,3196.1,3196.0,36.55063086]
[1765437802922,2.49842318,3196.1,3196.0,36.55063086]
[1765437803416,1.94829318,3196.1,3196.0,36.55063086]
[1765437803620,1.40014318,3196.1,3196.0,36.55063086]
[1765437804414,0.85212318,3196.1,3196.0,40.74013086]
[1765437804613,0.32887318,3196.1,3196.0,40.74013086]
[1765437804820,7.11256318,3196.1,3196.0,40.74013086]
[1765437805019,14.02142318,3196.1,3196.0,36.55063086]
[1765437805213,13.54665318,3196.1,3196.0,24.18263086]
[1765437805518,13.04711318,3196.1,3196.0,36.54663086]
[1765437805913,12.52405163,3196.1,3196.0,36.54663086]
[1765437806114,11.99751163,3196.1,3196.0,36.54663086]
[1765437806421,11.48201163,3196.1,3196.0,36.54663086]
[1765437806716,10.96594163,3196.1,3196.0,36.54663086]
[1765437808519,10.47022163,3196.1,3196.0,17.42576577]
[1765437808722,9.79945163,3196.1,3196.0,29.78776577]
[1765437809024,9.47563163,3196.1,3196.0,22.95366577]
[1765437810523,9.47563163,3196.1,3196.0,15.86506577]
[1765437811219,9.15558163,3196.1,3196.0,22.95366577]
[1765437811522,8.82815163,3196.1,3196.0,15.86506577]
[1765437812919,8.82815163,3196.1,3196.0,17.0125287]
[1765437814318,8.82815163,3196.1,3196.0,20.2203287]
[1765437815226,8.82815163,3196.1,3196.0,6.71086577]
[1765437815426,8.82815163,3196.1,3196.0,19.07186577]
[1765437815629,8.82815163,3196.1,3196.0,6.71086577]
[1765437815826,8.82815163,3196.1,3196.0,19.07086577]
[1765437816729,8.82815163,3196.1,3196.0,20.2183287]
[1765437819627,8.82815163,3196.1,3196.0,38.3643287]
[1765437819826,14.33523763,3196.1,3196.0,38.3643287]
[1765437821232,14.33523763,3196.1,3196.0,37.21686577]
[1765437821421,14.33523763,3196.1,3196.0,38.3643287]
[1765437821729,14.33523763,3196.1,3196.0,27.3069287]
[1765437822522,14.33523763,3196.1,3196.0,34.1410287]
[1765437823824,14.33523763,3196.1,3196.0,27.3069287]
[1765437824027,14.33523763,3196.1,3196.0,20.2183287]
[1765437824630,14.33523763,3196.1,3196.0,27.3069287]
[1765437825632,14.33523763,3196.1,3196.0,34.1410287]
[1765437826333,14.33523763,3196.1,3196.0,27.3069287]
[1765437826831,14.33523763,3196.1,3196.0,20.2183287]
[1765437829633,14.33523763,3196.1,3196.0,27.3069287]
[1765437830530,14.33523763,3196.1,3196.0,34.1410287]
[1765437830730,14.33523763,3196.1,3196.0,38.3643287]
[1765437831434,0.00350845,3196.1,3196.0,38.3643287]
[1765437831635,8.24790845,3196.3,3196.2,14.07912]
[1765437831830,0.00469359,3196.4,3196.2,15.22658293]
[1765437832036,0.00469359,3196.4,3196.3,26.43311]
[1765437832236,15.01979359,3196.4,3196.3,26.43311]
[1765437832537,15.02258276,3196.4,3196.3,29.68870011]
[1765437832741,6.81258276,3196.4,3196.3,29.68870011]
[1765437832942,13.98318276,3196.4,3196.3,29.68870011]
[1765437834140,6.81258276,3196.4,3196.3,29.68870011]
[1765437834337,13.98318276,3196.4,3196.3,29.68870011]
[1765437834533,6.81258276,3196.4,3196.3,29.68870011]
[1765437834839,13.98318276,3196.4,3196.3,29.68870011]
[1765437835040,13.98318276,3196.4,3196.3,30.83616304]
[1765437835242,24.45218276,3196.4,3196.3,30.83616304]
[1765437835433,17.28158276,3196.4,3196.3,30.83616304]
[1765437836944,24.45218276,3196.4,3196.3,30.83616304]
[1765437837244,10.47648276,3196.4,3196.3,30.83616304]
[1765437838143,17.28158276,3196.4,3196.3,30.83616304]
[1765437838345,24.45218276,3196.4,3196.3,30.83616304]
[1765437838745,17.28158276,3196.4,3196.3,30.83616304]
[1765437839948,24.60748276,3196.4,3196.3,30.83616304]
[1765437841857,24.60748276,3196.4,3196.3,29.68870011]
[1765437842058,24.60748276,3196.4,3196.3,30.83616304]
[1765437844460,17.28158276,3196.4,3196.3,30.83616304]
[1765437844846,24.60748276,3196.4,3196.3,30.83616304]
[1765437847761,17.28158276,3196.4,3196.3,30.83616304]
[1765437848156,24.60748276,3196.4,3196.3,30.83616304]
[1765437849057,24.60748276,3196.4,3196.3,24.00206304]
[1765437849456,24.60748276,3196.4,3196.3,30.85556304]
[1765437850160,17.28158276,3196.4,3196.3,30.85556304]
[1765437850962,10.47648276,3196.4,3196.3,30.85556304]
[1765437851463,17.48398276,3196.4,3196.3,30.85556304]
[1765437852565,24.80988276,3196.4,3196.3,24.00206304]
[1765437852958,24.80988276,3196.4,3196.3,30.85556304]
[1765437853154,24.80988276,3196.4,3196.3,3.41200011]
[1765437853360,24.80988276,3196.4,3196.3,15.76300011]
[1765437853556,24.80988276,3196.4,3196.3,24.43466304]
[1765437854362,24.80988276,3196.4,3196.3,16.91046304]
[1765437854564,24.80988276,3196.4,3196.3,15.76300011]
[1765437855461,24.80988276,3196.4,3196.3,27.00233183]
[1765437855657,24.80988276,3196.4,3196.3,34.52653183]
[1765437855964,24.80988276,3196.4,3196.3,28.14979476]
[1765437856164,24.80988276,3196.4,3196.3,27.00233183]
[1765437856470,24.80988276,3196.4,3196.3,34.52653183]
[1765437857069,24.80988276,3196.4,3196.3,27.00233183]